[Event "Titled Tuesday Blitz April 26 Early 2022"]
[White "Demchenko, Anton"]
[Black "Darini, Pouria"]
[WhiteFideId "4160258"]
[BlackFideId "12502200"]
[WhiteElo "2539"]
[BlackElo "2489"]
[Result "0-1"]
[Round "04"]
[TimeControl "180+1"]
[Date "2022.04.26"]
[WhiteClock "0:00:04"]
[BlackClock "0:00:12"]

1. e4 {[%clk 0:03:00]}  c5 {[%clk 0:02:59]} 2. Nf3 {[%clk 0:03:01]}  Nc6 {[%clk 0:02:58]} 3. Bb5 {[%clk 0:03:00]}  e6 {[%clk 0:02:56]} 4. O-O {[%clk 0:03:00]}  Nge7 {[%clk 0:02:56]} 5. Re1 {[%clk 0:03:00]}  Nd4 {[%clk 0:02:51]} 6. Nxd4 {[%clk 0:02:59]}  cxd4 {[%clk 0:02:52]} 7. c3 {[%clk 0:03:00]}  a6 {[%clk 0:02:52]} 8. Bf1 {[%clk 0:02:59]}  Nc6 {[%clk 0:02:52]} 9. b4 {[%clk 0:02:59]}  Be7 {[%clk 0:02:20]} 10. a4 {[%clk 0:02:58]}  O-O {[%clk 0:02:18]} 11. Na3 {[%clk 0:02:59]}  b6 {[%clk 0:02:10]} 12. Bb2 {[%clk 0:02:47]}  Bb7 {[%clk 0:02:07]} 13. b5 {[%clk 0:02:24]}  dxc3 {[%clk 0:01:46]} 14. Bxc3 {[%clk 0:02:21]}  axb5 {[%clk 0:01:34]} 15. Nxb5 {[%clk 0:02:21]}  d5 {[%clk 0:01:32]} 16. exd5 {[%clk 0:02:20]}  exd5 {[%clk 0:01:30]} 17. Qg4 {[%clk 0:01:53]}  Bf6 {[%clk 0:01:31]} 18. d4 {[%clk 0:01:54]}  Bc8 {[%clk 0:01:17]} 19. Qg3 {[%clk 0:01:45]}  Bf5 {[%clk 0:01:12]} 20. Bd3 {[%clk 0:01:08]}  Bxd3 {[%clk 0:01:12]} 21. Qxd3 {[%clk 0:01:09]}  Qd7 {[%clk 0:01:11]} 22. h3 {[%clk 0:01:02]}  h6 {[%clk 0:01:07]} 23. Bd2 {[%clk 0:00:54]}  Rfe8 {[%clk 0:01:01]} 24. Rxe8+ {[%clk 0:00:49]}  Rxe8 {[%clk 0:01:00]} 25. Rc1 {[%clk 0:00:45]}  Rc8 {[%clk 0:00:53]} 26. Be3 {[%clk 0:00:39]}  Na5 {[%clk 0:00:47]} 27. Rxc8+ {[%clk 0:00:37]}  Qxc8 {[%clk 0:00:48]} 28. Nd6 {[%clk 0:00:23]}  Qd7 {[%clk 0:00:43]} 29. Nb5 {[%clk 0:00:22]}  Nc4 {[%clk 0:00:43]} 30. Qb3 {[%clk 0:00:20]}  Be7 {[%clk 0:00:39]} 31. Nc3 {[%clk 0:00:20]}  Qe6 {[%clk 0:00:31]} 32. Nb5 {[%clk 0:00:14]}  Bf6 {[%clk 0:00:32]} 33. Qd3 {[%clk 0:00:11]}  h5 {[%clk 0:00:32]} 34. Nc3 {[%clk 0:00:11]}  g6 {[%clk 0:00:31]} 35. Nb5 {[%clk 0:00:10]}  Nb2 {[%clk 0:00:29]} 36. Qc2 {[%clk 0:00:10]}  Nc4 {[%clk 0:00:29]} 37. Qd3 {[%clk 0:00:10]}  Kg7 {[%clk 0:00:26]} 38. Kf1 {[%clk 0:00:11]}  Be7 {[%clk 0:00:24]} 39. Ke2 {[%clk 0:00:10]}  f5 {[%clk 0:00:22]} 40. Kf1 {[%clk 0:00:09]}  g5 {[%clk 0:00:22]} 41. Bc1 {[%clk 0:00:09]}  Kg6 {[%clk 0:00:21]} 42. Nc3 {[%clk 0:00:08]}  Bb4 {[%clk 0:00:21]} 43. Ne2 {[%clk 0:00:07]}  Qe4 {[%clk 0:00:19]} 44. Qb3 {[%clk 0:00:06]}  Bd2 {[%clk 0:00:18]} 45. Qd1 {[%clk 0:00:03]}  Qd3 {[%clk 0:00:17]} 46. Bxd2 {[%clk 0:00:02]}  Qxd2 {[%clk 0:00:16]} 47. Qxd2 {[%clk 0:00:03]}  Nxd2+ {[%clk 0:00:17]} 48. Ke1 {[%clk 0:00:04]}  Ne4 {[%clk 0:00:14]} 49. f4 {[%clk 0:00:03]}  g4 {[%clk 0:00:11]} 50. hxg4 {[%clk 0:00:04]}  fxg4 {[%clk 0:00:11]} 51. Kd1 {[%clk 0:00:05]}  h4 {[%clk 0:00:11]} 52. Ke1 {[%clk 0:00:05]}  Kf5 {[%clk 0:00:11]} 53. Kf1 {[%clk 0:00:04]}  g3 {[%clk 0:00:12]} 54. Ke1 {[%clk 0:00:03]}  Kg4 {[%clk 0:00:12]} 55. Kf1 {[%clk 0:00:03]}  Nf6 {[%clk 0:00:12]} 56. Kg1 {[%clk 0:00:03]}  Nh5 {[%clk 0:00:12]} 57. Nc3 {[%clk 0:00:03]}  Nxf4 {[%clk 0:00:13]} 58. Kf1 {[%clk 0:00:03]}  h3 {[%clk 0:00:11]} 59. gxh3+ {[%clk 0:00:03]}  Kxh3 {[%clk 0:00:11]} 60. Kg1 {[%clk 0:00:04]}  g2 {[%clk 0:00:12]} 0-1


[Site "https://www.chess.com"]

[Event "Titled Tuesday Blitz April 26 Early 2022"]
[White "Devaev, Alexander"]
[Black "Papasimakopoulos, Alexandros"]
[WhiteFideId "4169395"]
[BlackFideId "4244125"]
[WhiteElo "2185"]
[BlackElo "2340"]
[Result "0-1"]
[Round "04"]
[TimeControl "180+1"]
[Date "2022.04.26"]
[WhiteClock "0:00:06"]
[BlackClock "0:00:03"]

1. d4 {[%clk 0:03:00]}  e6 {[%clk 0:02:58]} 2. c4 {[%clk 0:03:00]}  Nf6 {[%clk 0:02:58]} 3. Nf3 {[%clk 0:02:59]}  Bb4+ {[%clk 0:02:58]} 4. Bd2 {[%clk 0:02:59]}  Qe7 {[%clk 0:02:57]} 5. Nc3 {[%clk 0:02:59]}  b6 {[%clk 0:02:55]} 6. g3 {[%clk 0:02:56]}  Bb7 {[%clk 0:02:54]} 7. Bg2 {[%clk 0:02:56]}  O-O {[%clk 0:02:54]} 8. O-O {[%clk 0:02:57]}  Bxc3 {[%clk 0:02:51]} 9. Bxc3 {[%clk 0:02:57]}  Ne4 {[%clk 0:02:52]} 10. Be1 {[%clk 0:02:56]}  d6 {[%clk 0:02:52]} 11. Rc1 {[%clk 0:02:57]}  Nd7 {[%clk 0:02:52]} 12. Kh1 {[%clk 0:02:29]}  f5 {[%clk 0:02:49]} 13. Ng1 {[%clk 0:02:26]}  e5 {[%clk 0:02:38]} 14. d5 {[%clk 0:02:22]}  Nef6 {[%clk 0:02:30]} 15. Qc2 {[%clk 0:02:01]}  g6 {[%clk 0:02:15]} 16. Bc3 {[%clk 0:01:53]}  a5 {[%clk 0:02:12]} 17. Nf3 {[%clk 0:01:37]}  Ne4 {[%clk 0:02:07]} 18. Be1 {[%clk 0:01:35]}  Ndc5 {[%clk 0:02:08]} 19. b3 {[%clk 0:01:33]}  Kg7 {[%clk 0:01:35]} 20. e3 {[%clk 0:01:33]}  h5 {[%clk 0:01:24]} 21. Nd2 {[%clk 0:01:33]}  c6 {[%clk 0:01:17]} 22. dxc6 {[%clk 0:00:55]}  Bxc6 {[%clk 0:01:17]} 23. Nb1 {[%clk 0:00:46]}  h4 {[%clk 0:01:16]} 24. Kg1 {[%clk 0:00:46]}  Rh8 {[%clk 0:01:09]} 25. Nc3 {[%clk 0:00:45]}  Qg5 {[%clk 0:01:03]} 26. f4 {[%clk 0:00:42]}  Qh6 {[%clk 0:00:53]} 27. gxh4 {[%clk 0:00:32]}  Rac8 {[%clk 0:00:42]} 28. Rd1 {[%clk 0:00:32]}  Nxc3 {[%clk 0:00:40]} 29. Qxc3 {[%clk 0:00:26]}  Bxg2 {[%clk 0:00:40]} 30. Kxg2 {[%clk 0:00:26]}  Ne4 {[%clk 0:00:41]} 31. Qb2 {[%clk 0:00:25]}  Qh5 {[%clk 0:00:40]} 32. Bg3 {[%clk 0:00:23]}  Rhe8 {[%clk 0:00:29]} 33. fxe5 {[%clk 0:00:20]}  dxe5 {[%clk 0:00:19]} 34. Bxe5+ {[%clk 0:00:19]}  Kg8 {[%clk 0:00:19]} 35. Rd7 {[%clk 0:00:18]}  Rcd8 {[%clk 0:00:13]} 36. Rfd1 {[%clk 0:00:12]}  Qxd1 {[%clk 0:00:10]} 37. Rxd1 {[%clk 0:00:11]}  Rxd1 {[%clk 0:00:11]} 38. Qa3 {[%clk 0:00:12]}  Rd2+ {[%clk 0:00:10]} 39. Kg1 {[%clk 0:00:12]}  Re2 {[%clk 0:00:05]} 40. Bf4 {[%clk 0:00:10]}  Rd8 {[%clk 0:00:05]} 41. Qc1 {[%clk 0:00:10]}  Rdd2 {[%clk 0:00:04]} 42. h5 {[%clk 0:00:09]}  Rg2+ {[%clk 0:00:04]} 43. Kh1 {[%clk 0:00:10]}  gxh5 {[%clk 0:00:05]} 44. Qa1 {[%clk 0:00:09]}  Rb2 {[%clk 0:00:04]} 45. Qd1 {[%clk 0:00:08]}  Rgd2 {[%clk 0:00:04]} 46. Qxh5 {[%clk 0:00:07]}  Rb1+ {[%clk 0:00:02]} 47. Qd1 {[%clk 0:00:06]}  Rbxd1# {[%clk 0:00:03]} 0-1


[Site "https://www.chess.com"]

[Event "Titled Tuesday Blitz April 26 Early 2022"]
[White "Dobre, Claudiu-Cristian"]
[Black "Nazari, Arad"]
[WhiteFideId "1211854"]
[BlackFideId "12577324"]
[WhiteElo "2207"]
[BlackElo "2129"]
[Result "0-1"]
[Round "04"]
[TimeControl "180+1"]
[Date "2022.04.26"]
[WhiteClock "0:00:02"]
[BlackClock "0:00:28"]

1. c4 {[%clk 0:03:00]}  Nf6 {[%clk 0:03:00]} 2. Nc3 {[%clk 0:03:00]}  d6 {[%clk 0:03:00]} 3. d4 {[%clk 0:02:59]}  g6 {[%clk 0:02:57]} 4. Nf3 {[%clk 0:02:57]}  Bg7 {[%clk 0:02:58]} 5. e4 {[%clk 0:02:58]}  e5 {[%clk 0:02:57]} 6. Be2 {[%clk 0:02:52]}  O-O {[%clk 0:02:47]} 7. O-O {[%clk 0:02:51]}  c5 {[%clk 0:02:47]} 8. dxe5 {[%clk 0:02:46]}  dxe5 {[%clk 0:02:39]} 9. Qxd8 {[%clk 0:02:45]}  Rxd8 {[%clk 0:02:40]} 10. Bg5 {[%clk 0:02:31]}  Bd7 {[%clk 0:02:30]} 11. Bxf6 {[%clk 0:02:26]}  Bxf6 {[%clk 0:02:29]} 12. Nd5 {[%clk 0:02:27]}  Kg7 {[%clk 0:02:27]} 13. Nc7 {[%clk 0:02:27]}  Nc6 {[%clk 0:02:02]} 14. Nxa8 {[%clk 0:02:26]}  Rxa8 {[%clk 0:02:03]} 15. Rfd1 {[%clk 0:02:11]}  Be6 {[%clk 0:02:03]} 16. b3 {[%clk 0:01:51]}  Nd4 {[%clk 0:02:01]} 17. Nxd4 {[%clk 0:01:50]}  exd4 {[%clk 0:01:59]} 18. f4 {[%clk 0:01:34]}  a5 {[%clk 0:01:53]} 19. e5 {[%clk 0:01:26]}  Bd8 {[%clk 0:01:51]} 20. Bf3 {[%clk 0:01:21]}  Ra7 {[%clk 0:01:45]} 21. a4 {[%clk 0:01:14]}  Ra6 {[%clk 0:01:38]} 22. Be4 {[%clk 0:01:11]}  Rb6 {[%clk 0:01:37]} 23. Rd3 {[%clk 0:01:11]}  Rb4 {[%clk 0:01:33]} 24. h3 {[%clk 0:01:03]}  h5 {[%clk 0:01:33]} 25. Rf3 {[%clk 0:01:02]}  f5 {[%clk 0:01:12]} 26. exf6+ {[%clk 0:00:45]}  Bxf6 {[%clk 0:01:12]} 27. Re1 {[%clk 0:00:41]}  Bd7 {[%clk 0:01:07]} 28. Rg3 {[%clk 0:00:36]}  Be8 {[%clk 0:01:02]} 29. Bxg6 {[%clk 0:00:23]}  Bh4 {[%clk 0:00:55]} 30. Bxe8+ {[%clk 0:00:19]}  Bxg3 {[%clk 0:00:55]} 31. Rb1 {[%clk 0:00:18]}  Rb6 {[%clk 0:00:51]} 32. Bxh5 {[%clk 0:00:15]}  Re6 {[%clk 0:00:49]} 33. Rd1 {[%clk 0:00:12]}  Re3 {[%clk 0:00:49]} 34. Rb1 {[%clk 0:00:12]}  d3 {[%clk 0:00:47]} 35. Rd1 {[%clk 0:00:12]}  d2 {[%clk 0:00:45]} 36. Rf1 {[%clk 0:00:10]}  Rxb3 {[%clk 0:00:41]} 37. Bd1 {[%clk 0:00:10]}  Rb1 {[%clk 0:00:40]} 38. f5 {[%clk 0:00:10]}  Kf6 {[%clk 0:00:37]} 39. h4 {[%clk 0:00:09]}  Bxh4 {[%clk 0:00:34]} 40. g4 {[%clk 0:00:09]}  Be1 {[%clk 0:00:27]} 41. g5+ {[%clk 0:00:08]}  Kxg5 {[%clk 0:00:27]} 42. f6 {[%clk 0:00:08]}  Rxd1 {[%clk 0:00:27]} 43. f7 {[%clk 0:00:09]}  Bf2+ {[%clk 0:00:27]} 44. Kg2 {[%clk 0:00:07]}  Rxf1 {[%clk 0:00:27]} 45. f8=Q {[%clk 0:00:07]}  d1=Q {[%clk 0:00:28]} 46. Qe7+ {[%clk 0:00:07]}  Kf5 {[%clk 0:00:28]} 47. Qf7+ {[%clk 0:00:07]}  Ke4 {[%clk 0:00:28]} 48. Qg6+ {[%clk 0:00:06]}  Kd4 {[%clk 0:00:28]} 49. Qd6+ {[%clk 0:00:05]}  Kc3 {[%clk 0:00:28]} 50. Qf6+ {[%clk 0:00:02]}  Bd4 {[%clk 0:00:28]} 0-1


[Site "https://www.chess.com"]

[Event "Titled Tuesday Blitz April 26 Early 2022"]
[White "Dubov, Daniil"]
[Black "Ibrahimli, Murad"]
[WhiteFideId "24126055"]
[BlackFideId "13410229"]
[WhiteElo "2791"]
[BlackElo "2109"]
[Result "1-0"]
[Round "04"]
[TimeControl "180+1"]
[Date "2022.04.26"]
[WhiteClock "0:00:22"]
[BlackClock "0:00:28"]

1. d4 {[%clk 0:03:00]}  d5 {[%clk 0:02:59]} 2. c4 {[%clk 0:03:00]}  c6 {[%clk 0:02:59]} 3. Nf3 {[%clk 0:03:01]}  Nf6 {[%clk 0:02:59]} 4. cxd5 {[%clk 0:03:00]}  cxd5 {[%clk 0:02:59]} 5. Nc3 {[%clk 0:03:01]}  Nc6 {[%clk 0:02:58]} 6. Bf4 {[%clk 0:03:02]}  Nh5 {[%clk 0:02:59]} 7. Be5 {[%clk 0:02:59]}  e6 {[%clk 0:02:50]} 8. e3 {[%clk 0:02:56]}  Nf6 {[%clk 0:02:46]} 9. Bf4 {[%clk 0:02:55]}  Bd6 {[%clk 0:02:44]} 10. Bd3 {[%clk 0:02:52]}  Bxf4 {[%clk 0:02:25]} 11. exf4 {[%clk 0:02:51]}  Qd6 {[%clk 0:02:25]} 12. Qd2 {[%clk 0:02:41]}  a6 {[%clk 0:02:24]} 13. O-O {[%clk 0:02:41]}  O-O {[%clk 0:02:23]} 14. Ne5 {[%clk 0:02:40]}  Bd7 {[%clk 0:02:17]} 15. Rae1 {[%clk 0:02:39]}  Rac8 {[%clk 0:02:15]} 16. Re3 {[%clk 0:02:38]}  Ne7 {[%clk 0:02:03]} 17. Rh3 {[%clk 0:02:34]}  g6 {[%clk 0:02:03]} 18. g4 {[%clk 0:02:25]}  Bc6 {[%clk 0:01:51]} 19. f5 {[%clk 0:02:19]}  exf5 {[%clk 0:01:47]} 20. Qh6 {[%clk 0:02:19]}  Kh8 {[%clk 0:01:32]} 21. g5 {[%clk 0:01:47]}  Neg8 {[%clk 0:01:30]} 22. Qh4 {[%clk 0:01:48]}  Nh5 {[%clk 0:01:30]} 23. Bxf5 {[%clk 0:01:24]}  Rc7 {[%clk 0:01:17]} 24. Re1 {[%clk 0:00:58]}  Re7 {[%clk 0:00:57]} 25. Bg4 {[%clk 0:00:40]}  f6 {[%clk 0:00:45]} 26. gxf6 {[%clk 0:00:39]}  Ngxf6 {[%clk 0:00:38]} 27. Bxh5 {[%clk 0:00:40]}  Nxh5 {[%clk 0:00:38]} 28. Qxe7 {[%clk 0:00:36]}  Qxe7 {[%clk 0:00:38]} 29. Nxg6+ {[%clk 0:00:36]}  hxg6 {[%clk 0:00:39]} 30. Rxe7 {[%clk 0:00:36]}  Rf4 {[%clk 0:00:39]} 31. Ne2 {[%clk 0:00:27]}  Rg4+ {[%clk 0:00:37]} 32. Kh1 {[%clk 0:00:26]}  Kg8 {[%clk 0:00:36]} 33. f3 {[%clk 0:00:25]}  Rg5 {[%clk 0:00:35]} 34. Re5 {[%clk 0:00:25]}  Rxe5 {[%clk 0:00:35]} 35. dxe5 {[%clk 0:00:26]}  Bd7 {[%clk 0:00:28]} 36. Rh4 {[%clk 0:00:23]}  Ng7 {[%clk 0:00:28]} 37. Nd4 {[%clk 0:00:22]} 1-0


[Site "https://www.chess.com"]

[Event "Titled Tuesday Blitz April 26 Early 2022"]
[White "Dwilewicz, Katarzyna"]
[Black "Kejzar, Petra"]
[WhiteFideId "1148486"]
[BlackFideId "14610213"]
[WhiteElo "1907"]
[BlackElo "2003"]
[Result "0-1"]
[Round "04"]
[TimeControl "180+1"]
[Date "2022.04.26"]
[WhiteClock "0:00:01"]
[BlackClock "0:00:05"]

1. e4 {[%clk 0:03:00]}  c5 {[%clk 0:02:58]} 2. Nf3 {[%clk 0:03:00]}  d6 {[%clk 0:02:58]} 3. d4 {[%clk 0:03:00]}  cxd4 {[%clk 0:02:58]} 4. Nxd4 {[%clk 0:03:01]}  g6 {[%clk 0:02:57]} 5. g3 {[%clk 0:02:54]}  Bg7 {[%clk 0:02:57]} 6. Bg2 {[%clk 0:02:54]}  Nc6 {[%clk 0:02:57]} 7. Be3 {[%clk 0:02:48]}  Qb6 {[%clk 0:02:52]} 8. Nb3 {[%clk 0:02:43]}  Qc7 {[%clk 0:02:52]} 9. Nc3 {[%clk 0:02:40]}  Nf6 {[%clk 0:02:49]} 10. O-O {[%clk 0:02:30]}  O-O {[%clk 0:02:49]} 11. h3 {[%clk 0:02:30]}  Ne5 {[%clk 0:02:42]} 12. Nd2 {[%clk 0:02:07]}  Be6 {[%clk 0:02:35]} 13. Nd5 {[%clk 0:01:58]}  Bxd5 {[%clk 0:02:30]} 14. exd5 {[%clk 0:01:58]}  Rfc8 {[%clk 0:02:29]} 15. Rc1 {[%clk 0:01:54]}  Nc4 {[%clk 0:02:13]} 16. Nxc4 {[%clk 0:01:52]}  Qxc4 {[%clk 0:02:14]} 17. b3 {[%clk 0:01:52]}  Qa6 {[%clk 0:02:10]} 18. c4 {[%clk 0:01:44]}  b5 {[%clk 0:02:04]} 19. c5 {[%clk 0:01:35]}  dxc5 {[%clk 0:02:04]} 20. Bxc5 {[%clk 0:01:17]}  Re8 {[%clk 0:01:40]} 21. a3 {[%clk 0:01:07]}  Rad8 {[%clk 0:01:33]} 22. Re1 {[%clk 0:00:57]}  Bf8 {[%clk 0:00:45]} 23. Qd4 {[%clk 0:00:46]}  Nxd5 {[%clk 0:00:22]} 24. Bxd5 {[%clk 0:00:45]}  e6 {[%clk 0:00:22]} 25. Bxf8 {[%clk 0:00:12]}  Rxf8 {[%clk 0:00:23]} 26. Rc7 {[%clk 0:00:08]}  Rxd5 {[%clk 0:00:20]} 27. Qxa7 {[%clk 0:00:08]}  Qd6 {[%clk 0:00:19]} 28. Rec1 {[%clk 0:00:05]}  Rd3 {[%clk 0:00:19]} 29. R7c3 {[%clk 0:00:04]}  Rd8 {[%clk 0:00:12]} 30. Kh2 {[%clk 0:00:02]}  Rd2 {[%clk 0:00:11]} 31. R1c2 {[%clk 0:00:02]}  Rd1 {[%clk 0:00:10]} 32. Qc5 {[%clk 0:00:02]}  Qd7 {[%clk 0:00:10]} 33. Qc6 {[%clk 0:00:02]}  Qd4 {[%clk 0:00:09]} 34. Qxb5 {[%clk 0:00:01]}  Qe4 {[%clk 0:00:06]} 35. f3 {[%clk 0:00:01]}  Qe1 {[%clk 0:00:05]} 0-1


[Site "https://www.chess.com"]

[Event "Titled Tuesday Blitz April 26 Early 2022"]
[White "Elgersma, Onno"]
[Black "Kosteniuk, Alexandra"]
[WhiteFideId "1053531"]
[BlackFideId "4128125"]
[WhiteElo "2304"]
[BlackElo "2469"]
[Result "1/2-1/2"]
[Round "04"]
[TimeControl "180+1"]
[Date "2022.04.26"]
[WhiteClock "0:00:02"]
[BlackClock "0:00:09"]

1. e4 {[%clk 0:03:00]}  c6 {[%clk 0:03:00]} 2. d4 {[%clk 0:02:59]}  d5 {[%clk 0:02:59]} 3. exd5 {[%clk 0:03:00]}  cxd5 {[%clk 0:03:00]} 4. c4 {[%clk 0:03:00]}  Nf6 {[%clk 0:02:59]} 5. Nc3 {[%clk 0:03:01]}  Nc6 {[%clk 0:02:59]} 6. Nf3 {[%clk 0:03:00]}  a6 {[%clk 0:02:58]} 7. cxd5 {[%clk 0:02:51]}  Nxd5 {[%clk 0:02:58]} 8. Bd3 {[%clk 0:02:51]}  Bg4 {[%clk 0:02:54]} 9. Qb3 {[%clk 0:02:45]}  Bxf3 {[%clk 0:02:48]} 10. gxf3 {[%clk 0:02:39]}  Ndb4 {[%clk 0:02:48]} 11. Bc4 {[%clk 0:02:28]}  e6 {[%clk 0:02:21]} 12. d5 {[%clk 0:02:14]}  Nd4 {[%clk 0:02:17]} 13. Qd1 {[%clk 0:01:57]}  Nbc2+ {[%clk 0:02:14]} 14. Kf1 {[%clk 0:01:55]}  Qh4 {[%clk 0:02:10]} 15. Rg1 {[%clk 0:01:06]}  Qh3+ {[%clk 0:01:35]} 16. Rg2 {[%clk 0:01:05]}  Qxf3 {[%clk 0:01:24]} 17. Qxf3 {[%clk 0:00:55]}  Nxf3 {[%clk 0:01:24]} 18. Rb1 {[%clk 0:00:55]}  O-O-O {[%clk 0:01:15]} 19. dxe6 {[%clk 0:00:52]}  fxe6 {[%clk 0:01:13]} 20. Bxe6+ {[%clk 0:00:53]}  Kb8 {[%clk 0:01:12]} 21. Ne4 {[%clk 0:00:46]}  Rd4 {[%clk 0:00:58]} 22. Bf5 {[%clk 0:00:28]}  g6 {[%clk 0:00:56]} 23. Bf4+ {[%clk 0:00:20]}  Ka7 {[%clk 0:00:56]} 24. Rc1 {[%clk 0:00:17]}  gxf5 {[%clk 0:00:54]} 25. Rxc2 {[%clk 0:00:18]}  Rxe4 {[%clk 0:00:51]} 26. Be3+ {[%clk 0:00:18]}  Nd4 {[%clk 0:00:40]} 27. Rc4 {[%clk 0:00:17]}  Rxe3 {[%clk 0:00:40]} 28. fxe3 {[%clk 0:00:17]}  Nc6 {[%clk 0:00:41]} 29. Rd2 {[%clk 0:00:16]}  Bh6 {[%clk 0:00:38]} 30. Rd7 {[%clk 0:00:16]}  Kb6 {[%clk 0:00:38]} 31. Rc3 {[%clk 0:00:16]}  f4 {[%clk 0:00:23]} 32. exf4 {[%clk 0:00:13]}  Bxf4 {[%clk 0:00:21]} 33. Rb3+ {[%clk 0:00:12]}  Kc5 {[%clk 0:00:21]} 34. Rbxb7 {[%clk 0:00:13]}  h5 {[%clk 0:00:18]} 35. Rh7 {[%clk 0:00:13]}  Rf8 {[%clk 0:00:18]} 36. Rxh5+ {[%clk 0:00:13]}  Be5+ {[%clk 0:00:17]} 37. Kg2 {[%clk 0:00:13]}  Rg8+ {[%clk 0:00:16]} 38. Kf3 {[%clk 0:00:12]}  Kd5 {[%clk 0:00:17]} 39. Rd7+ {[%clk 0:00:11]}  Ke6 {[%clk 0:00:17]} 40. Rd3 {[%clk 0:00:11]}  Nd4+ {[%clk 0:00:16]} 41. Kf2 {[%clk 0:00:10]}  Rf8+ {[%clk 0:00:16]} 42. Ke3 {[%clk 0:00:10]}  Nf5+ {[%clk 0:00:16]} 43. Ke4 {[%clk 0:00:09]}  Nd6+ {[%clk 0:00:16]} 44. Ke3 {[%clk 0:00:09]}  Bf4+ {[%clk 0:00:15]} 45. Ke2 {[%clk 0:00:09]}  Rg8 {[%clk 0:00:16]} 46. Ra3 {[%clk 0:00:08]}  Be5 {[%clk 0:00:14]} 47. Rxa6 {[%clk 0:00:07]}  Rg2+ {[%clk 0:00:13]} 48. Kf3 {[%clk 0:00:08]}  Rxb2 {[%clk 0:00:13]} 49. Ra5 {[%clk 0:00:08]}  Nc4 {[%clk 0:00:13]} 50. Ra6+ {[%clk 0:00:08]}  Kd5 {[%clk 0:00:13]} 51. a4 {[%clk 0:00:08]}  Rb3+ {[%clk 0:00:13]} 52. Ke2 {[%clk 0:00:08]}  Re3+ {[%clk 0:00:12]} 53. Kf2 {[%clk 0:00:08]}  Ra3 {[%clk 0:00:13]} 54. Ra8 {[%clk 0:00:07]}  Nd6 {[%clk 0:00:13]} 55. a5 {[%clk 0:00:07]}  Ne4+ {[%clk 0:00:13]} 56. Ke2 {[%clk 0:00:07]}  Ra2+ {[%clk 0:00:11]} 57. Kf3 {[%clk 0:00:03]}  Ra3+ {[%clk 0:00:11]} 58. Ke2 {[%clk 0:00:02]}  Ra2+ {[%clk 0:00:10]} 59. Kf3 {[%clk 0:00:02]}  Ra3+ {[%clk 0:00:09]} 60. Ke2 {[%clk 0:00:02]} 1/2-1/2


[Site "https://www.chess.com"]

[Event "Titled Tuesday Blitz April 26 Early 2022"]
[White "Fedoseev, Vladimir"]
[Black "Safarli, Eltaj"]
[WhiteFideId "24130737"]
[BlackFideId "13402129"]
[WhiteElo "2726"]
[BlackElo "2634"]
[Result "1/2-1/2"]
[Round "04"]
[TimeControl "180+1"]
[Date "2022.04.26"]
[WhiteClock "0:00:07"]
[BlackClock "0:00:05"]

1. d4 {[%clk 0:03:00]}  Nf6 {[%clk 0:02:59]} 2. Nf3 {[%clk 0:03:00]}  d5 {[%clk 0:02:58]} 3. Bf4 {[%clk 0:03:00]}  c5 {[%clk 0:02:56]} 4. e3 {[%clk 0:03:01]}  Nc6 {[%clk 0:02:55]} 5. c3 {[%clk 0:03:01]}  Qb6 {[%clk 0:02:51]} 6. Qc1 {[%clk 0:03:01]}  Bf5 {[%clk 0:02:49]} 7. Nbd2 {[%clk 0:03:00]}  e6 {[%clk 0:02:49]} 8. Be2 {[%clk 0:03:00]}  Be7 {[%clk 0:02:48]} 9. O-O {[%clk 0:03:01]}  O-O {[%clk 0:02:48]} 10. Nh4 {[%clk 0:02:39]}  Bg6 {[%clk 0:02:47]} 11. Nxg6 {[%clk 0:02:38]}  hxg6 {[%clk 0:02:48]} 12. h3 {[%clk 0:02:30]}  Rac8 {[%clk 0:02:47]} 13. Qb1 {[%clk 0:02:29]}  Rfd8 {[%clk 0:02:44]} 14. Rc1 {[%clk 0:02:26]}  a6 {[%clk 0:02:37]} 15. a4 {[%clk 0:02:15]}  Bd6 {[%clk 0:02:33]} 16. a5 {[%clk 0:02:12]}  Qc7 {[%clk 0:02:30]} 17. Bxd6 {[%clk 0:02:09]}  Qxd6 {[%clk 0:02:31]} 18. Nb3 {[%clk 0:01:59]}  cxd4 {[%clk 0:02:23]} 19. exd4 {[%clk 0:01:58]}  Rc7 {[%clk 0:02:21]} 20. Re1 {[%clk 0:01:55]}  Re7 {[%clk 0:02:20]} 21. Bf1 {[%clk 0:01:48]}  Rde8 {[%clk 0:02:20]} 22. Qc1 {[%clk 0:01:46]}  e5 {[%clk 0:02:12]} 23. dxe5 {[%clk 0:01:40]}  Rxe5 {[%clk 0:02:13]} 24. Rxe5 {[%clk 0:01:38]}  Rxe5 {[%clk 0:02:14]} 25. Qf4 {[%clk 0:01:37]}  Qe7 {[%clk 0:02:07]} 26. Rd1 {[%clk 0:01:34]}  Re1 {[%clk 0:01:56]} 27. Qd2 {[%clk 0:01:23]}  Rxd1 {[%clk 0:01:51]} 28. Qxd1 {[%clk 0:01:24]}  Qd8 {[%clk 0:01:51]} 29. Nc5 {[%clk 0:01:19]}  Qxa5 {[%clk 0:01:46]} 30. b4 {[%clk 0:01:04]}  Qa3 {[%clk 0:01:46]} 31. Qe1 {[%clk 0:01:00]}  a5 {[%clk 0:01:44]} 32. Nd3 {[%clk 0:00:44]}  axb4 {[%clk 0:01:43]} 33. cxb4 {[%clk 0:00:45]}  Ne4 {[%clk 0:01:41]} 34. b5 {[%clk 0:00:38]}  Nd4 {[%clk 0:01:33]} 35. Nf4 {[%clk 0:00:38]}  Qc3 {[%clk 0:01:25]} 36. Qe3 {[%clk 0:00:33]}  Nf5 {[%clk 0:00:55]} 37. Nxd5 {[%clk 0:00:20]}  Nxe3 {[%clk 0:00:44]} 38. Nxc3 {[%clk 0:00:19]}  Nxc3 {[%clk 0:00:44]} 39. fxe3 {[%clk 0:00:19]}  Kf8 {[%clk 0:00:32]} 40. Bc4 {[%clk 0:00:19]}  Ke7 {[%clk 0:00:32]} 41. Kf2 {[%clk 0:00:19]}  Ne4+ {[%clk 0:00:29]} 42. Ke2 {[%clk 0:00:19]}  Nd6 {[%clk 0:00:28]} 43. Kd3 {[%clk 0:00:20]}  b6 {[%clk 0:00:25]} 44. Kd4 {[%clk 0:00:20]}  Kd7 {[%clk 0:00:24]} 45. Bd3 {[%clk 0:00:20]}  g5 {[%clk 0:00:21]} 46. Kd5 {[%clk 0:00:20]}  Ne8 {[%clk 0:00:18]} 47. e4 {[%clk 0:00:18]}  Nc7+ {[%clk 0:00:09]} 48. Ke5 {[%clk 0:00:18]}  Ke7 {[%clk 0:00:07]} 49. Bc4 {[%clk 0:00:18]}  f6+ {[%clk 0:00:07]} 50. Kf5 {[%clk 0:00:18]}  Ne8 {[%clk 0:00:08]} 51. Kg6 {[%clk 0:00:17]}  Nd6 {[%clk 0:00:06]} 52. Bd3 {[%clk 0:00:18]}  Kf8 {[%clk 0:00:06]} 53. e5 {[%clk 0:00:15]}  Nf7 {[%clk 0:00:03]} 54. exf6 {[%clk 0:00:13]}  Ne5+ {[%clk 0:00:03]} 55. Kh7 {[%clk 0:00:13]}  gxf6 {[%clk 0:00:04]} 56. Be2 {[%clk 0:00:14]}  Kf7 {[%clk 0:00:02]} 57. g4 {[%clk 0:00:12]}  Nd7 {[%clk 0:00:01]} 58. Bc4+ {[%clk 0:00:12]}  Ke7 {[%clk 0:00:02]} 59. Kg7 {[%clk 0:00:11]}  Ne5 {[%clk 0:00:02]} 60. Be2 {[%clk 0:00:11]}  Nf7 {[%clk 0:00:02]} 61. Kg6 {[%clk 0:00:11]}  Nd6 {[%clk 0:00:03]} 62. Bd3 {[%clk 0:00:11]}  Ke6 {[%clk 0:00:03]} 63. Be2 {[%clk 0:00:11]}  Ke7 {[%clk 0:00:04]} 64. Bd3 {[%clk 0:00:11]}  Ke6 {[%clk 0:00:04]} 65. Bf1 {[%clk 0:00:10]}  Ke7 {[%clk 0:00:04]} 66. Be2 {[%clk 0:00:11]}  Ke6 {[%clk 0:00:05]} 67. Bd3 {[%clk 0:00:11]}  Ke7 {[%clk 0:00:05]} 68. Kg7 {[%clk 0:00:11]}  Ne8+ {[%clk 0:00:04]} 69. Kg8 {[%clk 0:00:11]}  Nd6 {[%clk 0:00:05]} 70. Be2 {[%clk 0:00:11]}  Ne4 {[%clk 0:00:05]} 71. Kg7 {[%clk 0:00:08]}  Nd6 {[%clk 0:00:05]} 72. Bd3 {[%clk 0:00:08]}  Ne8+ {[%clk 0:00:04]} 73. Kg6 {[%clk 0:00:07]}  Nd6 {[%clk 0:00:05]} 74. Kg7 {[%clk 0:00:07]} 1/2-1/2


[Site "https://www.chess.com"]